fUST/lending_fUST_20250302
["ID","MTS","AMOUNT","RATE_DAILY","PERIOD"]
[355074532,1740886342794,-1802.14,0.0002846,2]
[355074533,1740886342803,-962.58,0.0002846,2]
[355074534,1740886342812,-789.66,0.0002846,2]
[355074535,1740886342822,-1159.12,0.0002846,2]
[355074536,1740886342831,-20055.8,0.0002846,2]
[355074537,1740886342840,-2419.35,0.0002846,2]
[355074538,1740886342850,-4017.73,0.0002846,2]
[355074539,1740886342859,-2550.68,0.0002846,2]
[355074540,1740886342868,-1400.73,0.0002846,2]
[355074541,1740886342878,-596.32,0.0002846,2]
[355074542,1740886342887,-718.57,0.0002846,2]
[355074543,1740886342897,-1849.98,0.0002846,2]
[355074544,1740886342906,-18199.11,0.0002846,2]
[355074545,1740886342915,-6307.07,0.0002846,2]
[355074546,1740886342925,-3500.41,0.0002846,2]
[355074547,1740886342934,-740.47,0.0002846,2]
[355074548,1740886342943,-258.52395097,0.0002846,2]
[355074549,1740886342953,-1093.67,0.0002846,2]
[355074550,1740886342963,-11719.04,0.0002846,2]
[355074551,1740886342972,-2757.89,0.0002846,2]
[355074552,1740886342982,-1586.33,0.0002846,2]
[355074553,1740886342991,-23789.19,0.0002846,2]
[355074554,1740886343000,-1230.43,0.0002846,2]
[355074555,1740886343010,-3144.58,0.0002846,2]
[355074556,1740886343020,-733.81,0.0002846,2]
[355074557,1740886343030,-526.15,0.00028461,2]
[355074558,1740886343039,-1168.03,0.00028461,2]
[355074559,1740886343049,-930.89,0.00028461,2]
[355074560,1740886343059,-602.99,0.00028461,2]
[355074561,1740886343069,-500.03,0.00028461,2]
[355074562,1740886343079,-912.13,0.00028461,2]
[355074563,1740886343089,-515.72427245,0.00028461,2]
[355074564,1740886343098,-860.85,0.00028461,2]
[355074565,1740886343108,-500.0,0.00028461,2]
[355074566,1740886343118,-500.0,0.00028461,2]
[355074567,1740886343127,-500.0,0.00028461,2]
[355074568,1740886343137,-1228.22,0.00028461,2]
[355074569,1740886343147,-756.89,0.00028461,2]
[355074570,1740886343157,-585.74,0.00028461,2]
[355074571,1740886343166,-564.12,0.00028461,2]
[355074572,1740886343175,-685.69,0.00028461,2]
[355074573,1740886343185,-509.1,0.00028461,2]
[355074574,1740886343194,-500.0,0.00028461,2]
[355074575,1740886343204,-766.25,0.00028461,2]
[355074576,1740886343213,-1706.06,0.00028461,2]
[355074577,1740886343223,-870.92,0.00028461,2]
[355074578,1740886343233,-531.24,0.00028461,2]
[355074579,1740886343243,-818.25,0.00028461,2]
[355074580,1740886343255,-855.68,0.00028461,2]
[355074581,1740886343264,-500.49,0.00028461,2]
[355074582,1740886343274,-630.0,0.00028461,2]
[355074583,1740886343284,-500.0,0.00028461,2]
[355074584,1740886343295,-514.40560823,0.00028461,2]
[355074585,1740886343304,-500.0,0.00028461,2]
[355074586,1740886343314,-500.0,0.00028461,2]
[355074587,1740886343325,-1052.31,0.00028461,2]
[355074588,1740886343334,-1446.78,0.00028461,2]
[355074589,1740886343344,-607.0,0.00028461,2]
[355074590,1740886343354,-500.0,0.00028461,2]
[355074591,1740886343364,-500.0,0.00028461,2]
[355074592,1740886343374,-1818.63,0.00028461,2]
[355074593,1740886343384,-500.0,0.00028461,2]
[355074594,1740886343394,-543.88198939,0.00028461,2]
[355074595,1740886343403,-618.37,0.00028461,2]
[355074596,1740886343414,-604.16,0.00028461,2]
[355074597,1740886343424,-500.0,0.00028461,2]
[355074598,1740886343434,-500.0,0.00028461,2]
[355074599,1740886343444,-938.5,0.00028461,2]
[355074600,1740886343453,-801.7,0.00028461,2]
[355074601,1740886343463,-1129.81,0.00028461,2]
[355074602,1740886343473,-8270.53,0.00028461,2]
[355074603,1740886343482,-1547.95,0.00028461,2]
[355074604,1740886343491,-27555.16,0.00028461,2]
[355074605,1740886343501,-1394.09,0.00028461,2]
[355074606,1740886343510,-1310.16,0.00028461,2]
[355074607,1740886343520,-1400.07,0.00028461,2]
[355074608,1740886343529,-3117.57,0.00028461,2]
[355074609,1740886343538,-2046.05,0.00028461,2]
[355074610,1740886343547,-3193.9,0.00028461,2]
[355074611,1740886343557,-2337.31,0.00028461,2]
[355074612,1740886343567,-617.74,0.00028461,2]
[355074613,1740886343576,-281943.9,0.00028461,2]
[355074614,1740886343585,-500.0,0.00028461,2]
[355074615,1740886343595,-737.91,0.00028461,2]
[355074616,1740886343604,-549.97,0.00028461,2]
[355074617,1740886343614,-6435.74,0.00028461,2]
[355074618,1740886343624,-500.0,0.00028461,2]
[355074619,1740886343633,-3670.05,0.00028461,2]
[355074620,1740886343643,-8285.81,0.00028461,2]
[355074621,1740886343652,-794.47,0.00028461,2]
[355074622,1740886343662,-1888.44,0.00028461,2]
[355074623,1740886343671,-1071.59,0.00028461,2]
[355074624,1740886343680,-603.56,0.00028461,2]
[355074625,1740886343689,-1646.49,0.00028461,2]
[355074626,1740886343699,-2181.0,0.00028461,2]
[355074627,1740886343709,-2015.79,0.00028461,2]
[355074628,1740886343719,-511.40992688,0.00028461,2]
[355074629,1740886343728,-1677.97,0.00028461,2]
[355074630,1740886343739,-2507.59,0.00028461,2]
[355074631,1740886343749,-500.0,0.00028461,2]
[355074632,1740886343758,-500.0,0.00028461,2]
[355074633,1740886343768,-25000.0,0.00028493,6]
[355074634,1740886343777,-150.0,0.00028568,2]
[355074635,1740886343786,-150.0,0.00028568,2]
[355074636,1740886343796,-397.0,0.00028568,2]
[355074637,1740886343805,-687.36,0.0002857,2]
[355074638,1740886343814,-1084.31,0.0002857,2]
[355074639,1740886343823,-896.18,0.0002857,2]
[355074640,1740886343833,-500.0,0.0002857,2]
[355074641,1740886343842,-1218.11,0.0002857,2]
[355074642,1740886343851,-828.57,0.0002857,2]
[355074643,1740886343860,-695.69,0.0002857,2]
[355074644,1740886343870,-1314.21,0.0002857,2]
[355074645,1740886343880,-905.22,0.0002857,2]
[355074646,1740886343891,-614.99,0.0002857,2]
[355074647,1740886343901,-1289.22,0.0002857,2]
[355074648,1740886343910,-598.14,0.0002857,2]
[355074649,1740886343919,-2226.86,0.0002857,2]
[355074650,1740886343928,-2581.24,0.0002857,2]
[355074651,1740886343938,-1739.44,0.0002857,2]
[355074652,1740886343948,-1169.44,0.0002857,2]
[355074653,1740886343960,-500.0,0.0002857,2]
[355074654,1740886343970,-756.25,0.0002857,2]
[355074655,1740886343979,-1204.9,0.0002857,2]
[355074656,1740886343989,-500.0,0.0002857,2]
[355074657,1740886343999,-1004.4,0.0002857,2]
[355074658,1740886344009,-4788.78,0.0002857,2]
[355074659,1740886344019,-531.68,0.0002857,2]
[355074660,1740886344028,-3299.15,0.0002857,2]
[355074661,1740886344038,-500.0,0.0002857,2]
[355074662,1740886344047,-3768.09,0.0002857,2]
[355074663,1740886344057,-1428.31,0.0002857,2]
[355074664,1740886344067,-851.2,0.0002857,2]
[355074665,1740886344077,-2684.0,0.0002857,2]
[355074666,1740886344086,-4323.02,0.0002857,2]
[355074667,1740886344096,-782.1,0.0002857,2]
[355074668,1740886344105,-590.63,0.0002857,2]
[355074669,1740886344115,-1784.14,0.0002857,2]
[355074670,1740886344124,-1315.96,0.0002857,2]
[355074671,1740886344133,-659.17,0.0002857,2]
[355074672,1740886344144,-1228.88,0.0002857,2]
[355074673,1740886344153,-666.93,0.0002857,2]
[355074674,1740886344163,-1449.12,0.0002857,2]
[355074675,1740886344173,-505.18,0.0002857,2]
[355074676,1740886344182,-1090.34,0.0002857,2]
[355074677,1740886344192,-2634.31,0.0002857,2]
[355074678,1740886344201,-569.32,0.0002857,2]
[355074679,1740886344211,-6333.26,0.0002857,2]
[355074680,1740886344220,-500.0,0.0002857,2]
[355074681,1740886344230,-226.49004765,0.0002857,2]
[355074682,1740886344239,-500.0,0.0002857,2]
[355074683,1740886344249,-1915.38,0.0002857,2]
[355074684,1740886344262,-500.51,0.00028571,2]
[355074685,1740886344271,-349.32095305,0.00028571,2]
[355074686,1740886344281,-591.09,0.00028571,2]
[355074687,1740886344291,-553.7,0.00028571,2]
[355074688,1740886344301,-524.51,0.00028571,2]
[355074689,1740886344310,-1474.58,0.00028571,2]
[355074690,1740886344319,-500.0,0.00028571,2]
[355074691,1740886344329,-687.64,0.00028571,2]
[355074692,1740886344339,-521.17,0.00028571,2]
[355074693,1740886344348,-928.01,0.00028571,2]
[355074694,1740886344357,-500.0,0.00028571,2]
[355074695,1740886344367,-583.22,0.00028571,2]
[355074696,1740886344376,-821.72,0.00028571,2]
[355074697,1740886344385,-703.97,0.00028571,2]
[355074698,1740886344395,-646.1,0.00028571,2]
[355074699,1740886344404,-1413.57,0.00028571,2]
[355074700,1740886344413,-548.28,0.00028571,2]
[355074701,1740886344423,-1102.8,0.00028571,2]
[355074702,1740886344432,-694.6,0.00028571,2]
[355074703,1740886344441,-540.61,0.00028571,2]
[355074704,1740886344451,-500.0,0.00028571,2]
[355074705,1740886344460,-623.08,0.00028571,2]
[355074706,1740886344469,-1137.28,0.00028571,2]
[355074707,1740886344479,-1017.35,0.00028571,2]
[355074708,1740886344488,-1330.22,0.00028571,2]
[355074709,1740886344497,-1066.57,0.00028571,2]
[355074710,1740886344506,-500.0,0.00028571,2]
[355074711,1740886344516,-2368.56,0.00028571,2]
[355074712,1740886344526,-1359.76,0.00028571,2]
[355074713,1740886344535,-13513.14,0.00028722,2]
[355074714,1740886344544,-7624.93,0.00028722,2]
[355074715,1740886344554,-1615.71,0.00028722,5]
[355074716,1740886344563,-2961.69,0.00028722,2]
[355074717,1740886344572,-2330.23,0.00028722,2]
[355074718,1740886344582,-2306.22,0.00028722,2]
[355074719,1740886344592,-287.33522785,0.00028722,2]
[355074720,1740886344601,-205.69271906,0.00028728,5]
[355074721,1740886344611,-632.19,0.00028734,2]
[355074722,1740886344621,-2053.23,0.00028734,2]
[355074723,1740886344631,-1289.53,0.00028734,2]
[355074724,1740886344640,-542.79,0.00028734,2]
[355074725,1740886344650,-729.52,0.00028734,2]
[355074726,1740886344660,-2911.18,0.00028734,2]
[355074727,1740886344669,-543.53,0.00028734,2]
[355074728,1740886344678,-1263.1,0.00028734,2]
[355074729,1740886344689,-2931.73,0.00028734,2]
[355074730,1740886344699,-500.0,0.00028734,2]
[355074731,1740886344709,-1979.56,0.00028734,2]
[355074732,1740886344718,-523.18,0.00028734,2]
[355074733,1740886344727,-2314.06,0.00028734,2]
[355074734,1740886344737,-2260.58,0.00028734,2]
[355074735,1740886344746,-828.38,0.00028734,2]
[355074736,1740886344756,-500.0,0.00028734,2]
[355074737,1740886344765,-2081.84,0.00028734,2]
[355074738,1740886344775,-1076.19,0.00028734,2]
[355074739,1740886344785,-1339.9,0.00028734,2]
[355074740,1740886344794,-500.0,0.00028734,2]
[355074741,1740886344804,-3469.31,0.00028734,2]
[355074742,1740886344813,-1990.46,0.00028734,2]
[355074743,1740886344824,-971.07,0.00028734,2]
[355074744,1740886344834,-1249.98,0.00028734,2]
[355074745,1740886344843,-2179.06,0.00028734,2]
[355074746,1740886344853,-1012.24,0.00028734,2]
[355074747,1740886344862,-3060.91,0.00028734,2]
[355074748,1740886344872,-559.99,0.00028734,2]
[355074749,1740886344882,-615.9,0.00028734,2]
[355074750,1740886344891,-1996.5,0.00028734,2]
[355074751,1740886344901,-4060.12,0.00028734,2]
[355074752,1740886344910,-10606.09,0.00028734,2]
[355074753,1740886344920,-2799.89,0.00028734,2]
[355074754,1740886344929,-1333.19,0.00028734,2]
[355074755,1740886344938,-719.18,0.00028734,2]
[355074756,1740886344948,-835.72,0.00028734,2]
[355074757,1740886344957,-1367.07,0.00028734,2]
[355074758,1740886344966,-2939.4,0.00028734,2]
[355074759,1740886344975,-1214.18,0.00028734,2]
[355074760,1740886344985,-4481.86,0.00028734,2]
[355074761,1740886344994,-548.69,0.00028734,2]
[355074762,1740886345003,-659.46,0.00028734,2]
[355074763,1740886345012,-4158.95,0.00028734,2]
[355074764,1740886345021,-848.25,0.00028734,2]
[355074765,1740886345030,-25489.85,0.00028734,2]
[355074766,1740886345039,-1593.02,0.00028734,2]
[355074767,1740886345048,-3140.53,0.00028734,2]
[355074768,1740886345058,-716.21,0.00028734,2]
[355074769,1740886345067,-4639.3,0.00028734,2]
[355074770,1740886345077,-329.59614288,0.00028734,2]
[355074771,1740886345086,-14182.49,0.00028734,2]
[355074772,1740886345096,-1188.6,0.00028734,2]
[355074773,1740886345105,-592.63,0.00028734,2]
[355074774,1740886345114,-1643.74,0.00028734,2]
[355074775,1740886345123,-12307.96,0.00028734,2]
[355074776,1740886345133,-1368.42,0.00028734,2]
[355074777,1740886345142,-669.91,0.00028734,2]
[355074778,1740886345150,-500.0,0.00028734,2]
[355074779,1740886345159,-3975.37,0.00028734,2]
[355074780,1740886345168,-501.67,0.00028734,2]
[355074781,1740886345178,-1802.14,0.00028734,2]
[355074782,1740886345187,-962.58,0.00028734,2]
[355074783,1740886345196,-789.66,0.00028734,2]
[355074784,1740886345205,-1159.12,0.00028734,2]
[355074785,1740886345214,-20055.8,0.00028734,2]
[355074786,1740886345224,-2419.35,0.00028734,2]
[355074787,1740886345233,-4017.73,0.00028734,2]
[355074788,1740886345243,-2550.68,0.00028734,2]
[355074789,1740886345254,-1400.73,0.00028734,2]
[355074790,1740886345265,-596.32,0.00028734,2]
[355074791,1740886345274,-718.57,0.00028734,2]
[355074792,1740886345283,-1849.98,0.00028734,2]
[355074793,1740886345292,-18199.11,0.00028734,2]
[355074794,1740886345302,-6307.07,0.00028734,2]
[355074795,1740886345311,-3500.41,0.00028734,2]
[355074796,1740886345321,-740.47,0.00028734,2]
[355074797,1740886345331,-1093.67,0.00028734,2]
[355074798,1740886345340,-11719.04,0.00028734,2]
[355074799,1740886345350,-2757.89,0.00028734,2]
[355074800,1740886345359,-1586.33,0.00028734,2]
[355074801,1740886345369,-23789.19,0.00028734,2]
[355074802,1740886345379,-1230.43,0.00028734,2]
[355074803,1740886345388,-3144.58,0.00028734,2]
[355074804,1740886345399,-733.81,0.00028734,2]
[355074805,1740886345409,-526.15,0.00028735,2]
[355074806,1740886345418,-1168.03,0.00028735,2]
[355074807,1740886345427,-930.89,0.00028735,2]
[355074808,1740886345437,-602.99,0.00028735,2]
[355074809,1740886345447,-500.03,0.00028735,2]
[355074810,1740886345457,-912.13,0.00028735,2]
[355074811,1740886345467,-860.85,0.00028735,2]
[355074812,1740886345476,-216.74153052,0.00028735,2]
[355074813,1740886345485,-500.0,0.00028735,2]
[355074814,1740886345494,-274.11809678,0.00028735,2]
[355074815,1740886345504,-1228.22,0.00028735,2]
[355074816,1740886345513,-756.89,0.00028735,2]
[355074817,1740886345523,-585.74,0.00028735,2]
[355074818,1740886345533,-564.12,0.00028735,2]
[355074819,1740886345542,-685.69,0.00028735,2]
[355074820,1740886345552,-509.1,0.00028735,2]
[355074821,1740886345561,-500.0,0.00028735,2]
[355074822,1740886345571,-766.25,0.00028735,2]
[355074823,1740886345581,-1706.06,0.00028735,2]
[355074824,1740886345591,-870.92,0.00028735,2]
[355074825,1740886345601,-531.24,0.00028735,2]
[355074826,1740886345610,-818.25,0.00028735,2]
[355074827,1740886345620,-855.68,0.00028735,2]
[355074828,1740886345629,-500.49,0.00028735,2]
[355074829,1740886345639,-630.0,0.00028735,2]
[355074830,1740886345649,-500.0,0.00028735,2]
[355074831,1740886345659,-515.63002608,0.00028735,2]
[355074832,1740886345669,-500.0,0.00028735,2]
[355074833,1740886345678,-1052.31,0.00028735,2]
[355074834,1740886345688,-1446.78,0.00028735,2]
[355074835,1740886345698,-607.0,0.00028735,2]
[355074836,1740886345708,-210.50345377,0.00028735,2]
[355074837,1740886345718,-500.0,0.00028735,2]
[355074838,1740886345728,-1818.63,0.00028735,2]
[355074839,1740886345738,-500.0,0.00028735,2]
[355074840,1740886345747,-618.37,0.00028735,2]
[355074841,1740886345757,-604.16,0.00028735,2]
[355074842,1740886345766,-500.0,0.00028735,2]
[355074843,1740886345776,-500.0,0.00028735,2]
[355074844,1740886345785,-938.5,0.00028735,2]
[355074845,1740886345795,-801.7,0.00028735,2]
[355074846,1740886345805,-1129.81,0.00028735,2]
[355074847,1740886345815,-8270.53,0.00028735,2]
[355074848,1740886345824,-1547.95,0.00028735,2]
[355074849,1740886345834,-27555.16,0.00028735,2]
[355074850,1740886345843,-1394.09,0.00028735,2]
[355074851,1740886345853,-1310.16,0.00028735,2]
[355074852,1740886345862,-1400.07,0.00028735,2]
[355074853,1740886345872,-3117.57,0.00028735,2]
[355074854,1740886345881,-2046.05,0.00028735,2]
[355074855,1740886345891,-3193.9,0.00028735,2]
[355074856,1740886345901,-2337.31,0.00028735,2]
[355074857,1740886345910,-617.74,0.00028735,2]
[355074858,1740886345919,-281943.9,0.00028735,2]
[355074859,1740886345929,-454.60694463,0.00028735,2]
[355074860,1740886345938,-737.91,0.00028735,2]
[355074861,1740886345947,-549.97,0.00028735,2]
[355074862,1740886345956,-6435.74,0.00028735,2]
[355074863,1740886345966,-500.0,0.00028735,2]
[355074864,1740886345975,-3670.05,0.00028735,2]
[355074865,1740886345984,-8285.81,0.00028735,2]
[355074866,1740886345993,-794.47,0.00028735,2]
[355074867,1740886346003,-1888.44,0.00028735,2]
[355074868,1740886346013,-1071.59,0.00028735,2]
[355074869,1740886346022,-603.56,0.00028735,2]
[355074870,1740886346031,-1646.49,0.00028735,2]
[355074871,1740886346041,-2181.0,0.00028735,2]
[355074872,1740886346050,-2015.79,0.00028735,2]
[355074873,1740886346059,-1677.97,0.00028735,2]
[355074874,1740886346069,-2507.59,0.00028735,2]
[355074875,1740886346078,-536.14409711,0.00028735,2]
[355074876,1740886346087,-212.8,0.00028735,2]
[355074877,1740886346097,-155.378755,0.00028749,5]
[355074878,1740886346106,-25000.0,0.00028766,5]
[355074879,1740886346115,-165.45177604,0.000288,7]
[355074880,1740886346125,-687.36,0.00028844,2]
[355074881,1740886346134,-1084.31,0.00028844,2]
[355074882,1740886346144,-896.18,0.00028844,2]
[355074883,1740886346153,-500.0,0.00028844,2]
[355074884,1740886346163,-1218.11,0.00028844,2]
[355074885,1740886346172,-828.57,0.00028844,2]
[355074886,1740886346181,-695.69,0.00028844,2]
[355074887,1740886346191,-1314.21,0.00028844,2]
[355074888,1740886346200,-905.22,0.00028844,2]
[355074889,1740886346209,-614.99,0.00028844,2]
[355074890,1740886346218,-1289.22,0.00028844,2]
[355074891,1740886346228,-598.14,0.00028844,2]
[355074892,1740886346237,-2226.86,0.00028844,2]
[355074893,1740886346247,-2581.24,0.00028844,2]
[355074894,1740886346260,-1739.44,0.00028844,2]
[355074895,1740886346270,-1169.44,0.00028844,2]
[355074896,1740886346280,-500.0,0.00028844,2]
[355074897,1740886346289,-756.25,0.00028844,2]
[355074898,1740886346299,-1204.9,0.00028844,2]
[355074899,1740886346309,-500.0,0.00028844,2]
[355074900,1740886346319,-1004.4,0.00028844,2]
[355074901,1740886346485,-4788.78,0.00028844,2]
[355074902,1740886346500,-531.68,0.00028844,2]
[355074903,1740886346511,-3299.15,0.00028844,2]
[355074904,1740886346520,-262.42,0.00028844,2]
[355074905,1740886346530,-3768.09,0.00028844,2]
[355074906,1740886346541,-284.61250612,0.00028844,2]
[355074907,1740886354650,83.22893255,0.00022,2]
[355074908,1740886355215,130935.47066536,0.00024,15]
[355074909,1740886355237,200000.0,0.00024,15]
[355074910,1740886357997,400000.0,0.00025,30]
[355074911,1740886466574,-151.0,0.000229,5]
[355074912,1740886466600,-151.0,0.00023,6]
[355074913,1740886466625,-151.0,0.000231,6]
[355074914,1740886466650,-151.0,0.000232,9]
[355074915,1740886466675,-151.0,0.000233,6]
[355074916,1740886466699,-151.0,0.000234,10]
[355074917,1740886466737,-413.28,0.000235,7]
[355074918,1740886466764,-1000.0,0.00023515,5]
[355074919,1740886467021,-151.0,0.000236,9]
[355074920,1740886467048,-200.82352,0.00023635,7]
[355074921,1740886467073,-200.82352,0.00023635,7]
[355074922,1740886467097,-151.0,0.00023638,7]
[355074923,1740886467122,-151.0,0.00023638,7]
[355074924,1740886467146,-166.737473,0.00023638,7]
[355074925,1740886467171,-151.0,0.00023638,7]
[355074926,1740886467195,-166.737473,0.00023638,7]
[355074927,1740886467221,-151.0,0.00023638,7]
[355074928,1740886467245,-151.0,0.00023638,7]
[355074929,1740886467270,-151.0,0.00023638,7]
[355074930,1740886467298,-151.0,0.00023638,7]
[355074931,1740886467323,-151.0,0.00023638,7]
[355074932,1740886467348,-151.0,0.00023638,7]
[355074933,1740886467374,-151.0,0.000237,9]
[355074934,1740886467401,-1000.0,0.00023789,5]
[355074935,1740886467432,-151.0,0.000238,6]
[355074936,1740886467459,-151.0,0.00023802,7]
[355074937,1740886467484,-151.0,0.00023802,7]
[355074938,1740886467509,-166.737473,0.00023802,7]
[355074939,1740886467534,-151.0,0.00023802,7]
[355074940,1740886467559,-166.737473,0.00023802,7]
[355074941,1740886467585,-200.82352,0.00023802,7]
[355074942,1740886467610,-260.202199,0.00023802,7]
[355074943,1740886467635,-200.82352,0.00023802,7]
[355074944,1740886467660,-151.0,0.00023802,7]
[355074945,1740886467685,-151.0,0.00023802,7]
[355074946,1740886467710,-151.0,0.00023802,7]
[355074947,1740886467735,-151.0,0.00023802,7]
[355074948,1740886467761,-151.0,0.00023802,7]
[355074949,1740886467789,-151.268531,0.00023803,7]
[355074950,1740886467816,-151.0,0.00023803,7]
[355074951,1740886467842,-166.737473,0.00023803,7]
[355074952,1740886467867,-151.0,0.00023803,7]
[355074953,1740886467893,-166.737473,0.00023803,7]
[355074954,1740886467917,-200.82352,0.00023803,7]
[355074955,1740886467942,-200.82352,0.00023803,7]
[355074956,1740886467966,-151.0,0.00023803,7]
[355074957,1740886467991,-151.0,0.00023803,7]
[355074958,1740886468017,-151.0,0.00023803,7]
[355074959,1740886468043,-151.0,0.00023803,7]
[355074960,1740886468067,-151.0,0.00023803,7]
[355074961,1740886468095,-151.0,0.000239,7]
[355074962,1740886468121,-200.82352,0.00023912,7]
[355074963,1740886468146,-200.82352,0.00023912,7]
[355074964,1740886468172,-39434.236272,0.00024,15]
[355074965,1740886481470,-50000.0,0.00024,15]
[355074966,1740886507955,-50000.0,0.00024,15]
[355074967,1740886511946,-50000.0,0.00024,15]
[355074968,1740886582242,-373.7,0.00023414,3]
[355074969,1740886582284,-413.28,0.000235,7]
[355074970,1740886582334,-510.26861084,0.00023528,14]
[355074971,1740886582396,-48702.75138916,0.00024,15]
[355074972,1740887238147,-843.95018479,0.00021486,2]
[355074973,1740887238169,-94.73181429,0.00022,2]
[355074974,1740887240125,-334.03925316,0.00022,2]
[355074975,1740887240147,-0.77802302,0.00022022,2]
[355074976,1740887249086,-1211.26853274,0.00022022,2]
[355074977,1740887252109,-5457.12528844,0.00022022,2]
[355074978,1740887252132,-175.8469198,0.00022056,2]
[355074979,1740887252156,-344.1574084,0.00022192,2]
[355074980,1740887252176,-226.60118739,0.00022213,2]
[355074981,1740887252198,-183.109116,0.00022238,2]
[355074982,1740887252218,-1235.8983017,0.00022411,2]
[355074983,1740887252239,-300.0,0.0002255,2]
[355074984,1740887252260,-500.0,0.00022551,2]
[355074985,1740887252280,-483.94750924,0.00022561,2]
[355074986,1740887252301,-500.0,0.00022652,2]
[355074987,1740887252321,-1396.31856928,0.000229,2]
[355074988,1740887252340,-210.51250746,0.000229,2]
[355074989,1740887252360,-176.75,0.000229,2]
[355074990,1740887252680,-160.34,0.0002299,2]
[355074991,1740887252703,-2700.72940237,0.00023,3]
[355074992,1740887350115,-250.0,0.00021868,2]
[355074993,1740887350139,-6469.27059763,0.00023,3]
[355074994,1740887428685,88.20508587,0.00022593,2]
[355074995,1740887428708,205.71125043,0.00022593,2]
[355075031,1740887433315,-325.9801143,0.00022593,2]
[355075032,1740887433327,-1129.25953891,0.00023317,2]
[355075033,1740887433336,-183.109116,0.0002335,2]
[355075034,1740887433771,-4690.25206452,0.00023357,2]
[355075035,1740887433785,-152.72,0.00023407,2]
[355075036,1740887433796,-152.72,0.00023407,2]
[355075037,1740887433808,-152.72,0.00023407,2]
[355075038,1740887433818,-152.72,0.00023407,2]
[355075039,1740887433830,-152.72,0.00023407,2]
[355075040,1740887433840,-152.72,0.00023407,2]
[355075041,1740887433858,-300.0,0.00023411,2]
[355075042,1740887433873,-292.88431352,0.00023415,2]
[355075043,1740887433885,-206.88616134,0.00023416,2]
[355075044,1740887433897,-500.0,0.00023416,2]
[355075045,1740887433908,-500.0,0.00023416,2]
[355075046,1740887433919,-500.0,0.00023416,2]
[355075047,1740887433930,-591.98553576,0.00023416,2]
[355075048,1740887433941,-500.0,0.00023416,2]
[355075049,1740887433952,-354.04740778,0.00023416,2]
[355075050,1740887433963,-576.55,0.00023417,2]
[355075051,1740887433974,-500.0,0.00023417,2]
[355075052,1740887433985,-500.0,0.00023419,2]
[355075053,1740887433997,-500.0,0.00023419,2]
[355075054,1740887434009,-695.94,0.00023419,2]
[355075055,1740887434020,-500.0,0.00023419,2]
[355075056,1740887434031,-546.65417397,0.00023419,2]
[355075057,1740887434041,-505.46521836,0.00023419,2]
[355075058,1740887434052,-500.0,0.00023419,2]
[355075059,1740887434063,-500.0,0.00023419,2]
[355075060,1740887434074,-500.0,0.00023419,2]
[355075061,1740887434084,-500.0,0.00023419,2]
[355075062,1740887434095,-500.0,0.00023419,2]
[355075063,1740887434105,-500.0,0.00023419,2]
[355075064,1740887434117,-500.0,0.00023419,2]
[355075065,1740887434128,-500.0,0.00023419,2]
[355075066,1740887434139,-638.24,0.00023419,2]